Cogmind - Beta 9.6 @@@ ROGUE MODE // 2020.05.16 @ 15:07:21 Player: RNGesus Result: Self-destructed Performance ------------- Evolutions (4) 2000 Regions Visited (5) 1000 Robots Destroyed (25) 125 Value Destroyed (683) 683 Prototype IDs (4) 80 Alien Tech Used (0) 0 Bonus (24) 24 TOTAL SCORE: 3912 Bonus ------- High Alert Combat Kills 24 Cogmind --------- Core Integrity 850/850 Matter 280/300 Energy 68/100 System Corruption 0% Temperature Cool (0) Movement Core (50) Location -6/Factory Parts ------- > --- POWER (1) -------- (None) > --- PROPULSION (5) --- (None) > --- UTILITY (7) ------ Advanced Sensor Array Advanced Signal Interpreter Hacking Suite Hacking Suite Hacking Suite Hacking Suite Hacking Suite > --- WEAPON (2) ------- (None) > --- INVENTORY (4) ---- Micro Nuclear Core Medium Storage Unit Heavy Particle Gun Improved Proton Missile Launcher Peak State ------------ > --- POWER ------------ (None) > --- PROPULSION ------- Improved Medium Treads Improved Medium Treads > --- UTILITY ---------- Advanced Sensor Array Advanced Signal Interpreter Hacking Suite Hacking Suite Hacking Suite Hacking Suite Hacking Suite > --- WEAPON ----------- (None) > --- INVENTORY -------- Micro Nuclear Core Medium Storage Unit Heavy Particle Gun Improved Proton Missile Launcher [Rating: 32] Favorites ----------- Power Light Deuterium Engine Engine Light Deuterium Engine Power Core Light Nuclear Core Propulsion Flight Unit Treads Improved Medium Treads Flight Unit Flight Unit Utility Hacking Suite Device Advanced Sensor Array Processor Advanced Signal Interpreter Hackware Hacking Suite Weapon Heavy Particle Gun Energy Gun Heavy Particle Gun Ballistic Gun Light Assault Rifle Launcher Rocket Launcher Build | -11 -10 -9 -8 -7 -6 ------- Run | Scr Mat Mat Mat Fac Fac Slots Evolved 8 | . . 2 2 2 2 Power . | . . . . . . Propulsion 3 | . . 1 1 . 1 Utility 5 | . . 1 1 2 1 Weapon . | . . . . . . Parts Attached 36 | . 2 5 16 7 6 Power 3 | . . . 3 . . Engine 2 | . . . 2 . . Core 1 | . . . 1 . . Reactor . | . . . . . . Propulsion 6 | . . . 3 1 2 Treads 2 | . . . . . 2 Leg . | . . . . . . Wheel . | . . . . . . Hover . | . . . . . . Flight 4 | . . . 3 1 . Utility 15 | . . 2 5 5 3 Device 4 | . . . 1 1 2 Storage . | . . . . . . Processor 6 | . . 2 2 2 . Hackware 5 | . . . 2 2 1 Protection . | . . . . . . Artifact . | . . . . . . Weapon 12 | . 2 3 5 1 1 Energy Gun 2 | . . . . 1 1 Energy Cannon . | . . . . . . Ballistic Gun 8 | . 2 3 3 . . Ballistic Cannon . | . . . . . . Launcher 2 | . . . 2 . . Special Weapon . | . . . . . . Impact Weapon . | . . . . . . Slashing Weapon . | . . . . . . Piercing Weapon . | . . . . . . Special Melee Weapon . | . . . . . . Unidentified Prototypes 4 | . . 1 1 2 . Parts Lost 12 | . 1 3 8 . . Power 2 | . . . 2 . . Propulsion 4 | . . 1 3 . . Utility . | . . . . . . Weapon 6 | . 1 2 3 . . Highest Loss Streak 5 | . 1 2 5 . . Average Slot Usage (%) 42 | . 15 23 59 50 45 Flight 3 | . . . 18 . . Device 3 | . . . 1 3 6 Processor 8 | . . 10 15 10 6 Hackware 18 | . . . 7 30 31 Energy Gun 1 | . . . . 4 1 Ballistic Gun 5 | . 15 12 8 . . Naked Turns 32 | . 32 . . . . Heaviest Build 9 | . 2 3 9 4 4 Greatest Support 30 | 3 3 3 12 3 30 Greatest Overweight (x) 2 | . . . 2 1 1 Average Overweight (x) . | . . . . . . Largest Inventory Capacity 4 | 4 4 4 4 4 4 Average Capacity 4 | 4 4 4 4 4 4 Most Carried 4 | 4 4 4 4 3 4 Average Carried 3 | 2 2 3 3 1 3 Final Capacity 4 | 4 4 4 4 4 4 Final Carried 4 | 4 3 4 3 3 4 Class Distribution -------------------- 61% | Hacker-Mutant 30% | Mutant 8% | Scavenger-Mutant Dominant Class ---------------- Mutant | -10/Materials Mutant | -9/Materials Scavenger-Mutant | -8/Materials Hacker-Mutant | -7/Factory Hacker-Mutant | -6/Factory Resources | -11 -10 -9 -8 -7 -6 ----------- Run | Scr Mat Mat Mat Fac Fac Matter Collected 775 | 179 47 127 279 96 47 Remotely . | . . . . . . Salvage Created 938 | . 93 287 424 124 10 Parts 55 | . 2 19 25 6 3 Haulers Intercepted 1 | . . . 1 . . Recyclers Shooed . | . . . . . . Parts Field Recycled . | . . . . . . Retrieved Matter . | . . . . . . Parts Self-Destructed . | . . . . . . Prevented . | . . . . . . Kills | -11 -10 -9 -8 -7 -6 ------- Run | Scr Mat Mat Mat Fac Fac Combat Hostiles Destroyed 18 | . 2 5 11 . . Guns 11 | . 2 5 4 . . AOE 7 | . . . 7 . . Classes Destroyed 7 | . 1 2 3 . 1 Hauler 1 | . . . 1 . . Recycler 2 | . . . 1 1 . Operator 1 | . . . . . 1 Watcher 3 | . . 1 1 1 . Swarmer 6 | . . . 6 . . Grunt 8 | . 2 3 3 . . Sentry 4 | . . 2 2 . . Best Kill Streak 5 | . 2 3 5 1 1 Combat Bots Only 4 | . 2 3 4 . . Max Kills in Single Turn 2 | . 1 1 2 1 1 Gunslinging . | . . . . . . Exploded 2 | . . . 2 . . Melee . | . . . . . . Uniques/NPCs Destroyed . | . . . . . . Combat | -11 -10 -9 -8 -7 -6 -------- Run | Scr Mat Mat Mat Fac Fac Damage Taken 1305 | . 121 374 798 12 . Core 422 | . 15 125 282 . . Absorbed by Shields . | . . . . . . Core Remaining (%) 82 | 100 94 68 48 100 . Volleys Fired 90 | . 18 25 36 10 1 Largest 2 | . 2 2 2 1 1 Hottest 59 | . 40 43 59 55 55 Shots Fired 118 | . 31 34 42 10 1 Gun 113 | . 31 34 37 10 1 Cannon . | . . . . . . Launcher 5 | . . . 5 . . Special . | . . . . . . Kinetic 102 | . 31 34 37 . . Thermal 11 | . . . . 10 1 Explosive 5 | . . . 5 . . Electromagnetic . | . . . . . . Robot Hit Streak 18 | . 7 18 7 4 2 Robot Miss Streak 3 | . 3 1 2 2 . Penetration Max . | . . . . . . Secondary Targets . | . . . . . . Shots Hit Robots 85 | . 20 32 25 7 1 Core Hits 46 | . 8 11 23 3 1 Critical Hits 2 | . . 2 . . . Critical Kills . | . . . . . . Critical Parts Destroyed 1 | . . 1 . . . Melee Attacks . | . . . . . . Impact . | . . . . . . Slashing . | . . . . . . Piercing . | . . . . . . Sneak Attacks . | . . . . . . Combat Hostiles . | . . . . . . Follow-up Attacks . | . . . . . . Damage Inflicted 1601 | . 174 367 906 135 19 Guns 1096 | . 174 367 401 135 19 Cannons . | . . . . . . Explosions 505 | . . . 505 . . Melee . | . . . . . . Ramming . | . . . . . . Kinetic 942 | . 174 367 401 . . Thermal 154 | . . . . 135 19 Explosive 505 | . . . 505 . . Electromagnetic . | . . . . . . Impact . | . . . . . . Slashing . | . . . . . . Piercing . | . . . . . . Highest Corruption . | . . . . . . Average Corruption . | . . . . . . Corruption Purged . | . . . . . . Overload Shots . | . . . . . . Overflow Damage 23 | . . . 23 . . Projectiles . | . . . . . . Explosions 23 | . . . 23 . . Melee . | . . . . . . Knockbacks . | . . . . . . Impact . | . . . . . . Kinetic . | . . . . . . Secondary . | . . . . . . Self-Inflicted Damage 69 | . . . 69 . . Shots 2 | . . . 2 . . Rammed 1 | . 1 . . . . Targets Rammed 1 | . 1 . . . . Kicked . | . . . . . . Crushed . | . . . . . . Highest Temperature 25 | . 4 2 25 . . Average Temperature 8 | . 3 1 15 . . Received Heat Transfer 450 | . 69 147 234 . . Siege Activations . | . . . . . . Robots Corrupted . | . . . . . . Combat Hostiles . | . . . . . . Parts Fried . | . . . . . . Impact Corruptions . | . . . . . . Robots Melted . | . . . . . . Combat Hostiles . | . . . . . . Parts Melted . | . . . . . . Heat Transferred 296 | . . . . 259 37 Parts Sabotaged . | . . . . . . Parts Stolen . | . . . . . . Parts Stripped . | . . . . . . Power Chain Reactions . | . . . . . . Missiles Intercepted . | . . . . . . Alert | -11 -10 -9 -8 -7 -6 ------- Run | Scr Mat Mat Mat Fac Fac Peak Influence 458 | . 70 192 458 254 123 Average Influence 146 | . 43 118 266 232 83 Maximum Alert Level 2 | . . . 2 1 . Low Security (%) 64 | 100 100 100 19 . 100 Level 1 34 | . . . 72 100 . Level 2 1 | . . . 8 . . Level 3 . | . . . . . . Level 4 . | . . . . . . Level 5 . | . . . . . . High Security . | . . . . . . Max Security . | . . . . . . Squads Dispatched 6 | . . . 2 1 3 Investigation 1 | . . . . . 1 Extermination 1 | . . . . 1 . Reinforcement 3 | . . . 1 . 2 Assault . | . . . . . . Garrison 1 | . . . 1 . . Intercept . | . . . . . . Construction Impeded . | . . . . . . Haulers Reinforced . | . . . . . . Stealth | -11 -10 -9 -8 -7 -6 --------- Run | Scr Mat Mat Mat Fac Fac Distress Signals 5 | . 2 1 1 1 . Communications Jammed . | . . . . . . Distress Signals . | . . . . . . Times Spotted 45 | . 9 6 25 4 1 Peak Tracking Total 10 | . 5 2 10 3 1 Tactical Retreats 2 | . 2 . . . . Traps | -11 -10 -9 -8 -7 -6 ------- Run | Scr Mat Mat Mat Fac Fac Traps Triggered 2 | . . 1 . . 1 Indirectly . | . . . . . . Trap Hack Attempts . | . . . . . . Triggered . | . . . . . . Disarmed . | . . . . . . Reprogrammed . | . . . . . . Reused . | . . . . . . Traps Extracted . | . . . . . . Installed . | . . . . . . Triggered . | . . . . . . Machines | -11 -10 -9 -8 -7 -6 ---------- Run | Scr Mat Mat Mat Fac Fac Machines Disabled 1 | . . . 1 . . Max in Single Turn 1 | . . . 1 . . Garrison Access 1 | . . . . 1 . Machines Sabotaged . | . . . . . . Garrisons Compromised . | . . . . . . Overloaded Fab Kills . | . . . . . . Fab Network Shutdowns . | . . . . . . Hacking | -11 -10 -9 -8 -7 -6 --------- Run | Scr Mat Mat Mat Fac Fac Machines Accessed 11 | . . 2 2 4 3 Terminals 8 | . . 2 2 2 2 Fabricators 1 | . . . . . 1 Repair Stations . | . . . . . . Recycling Units . | . . . . . . Scanalyzers 1 | . . . . 1 . Garrison Access 1 | . . . . 1 . Total Hacks 23 | . . 4 4 9 6 Successful 14 | . . 3 4 4 3 Failed 9 | . . 1 . 5 3 Catastrophic . | . . . . . . Database Lockouts . | . . . . . . Manual 13 | . . 3 3 5 2 Terminals 17 | . . 4 4 5 4 Fabricators 2 | . . . . . 2 Repair Stations . | . . . . . . Recycling Units . | . . . . . . Scanalyzers 3 | . . . . 3 . Garrison Access 1 | . . . . 1 . Terminal Hacks 7 | . . 2 3 1 1 Level Access Points 1 | . . . 1 . . Terminal Index 2 | . . . . 1 1 Locate Traps 1 | . . . 1 . . Transport Status 1 | . . 1 . . . Hauler Manifests 2 | . . 1 1 . . Fabricator Hacks 2 | . . . . . 2 Network Status 1 | . . . . . 1 Build 1 | . . . . . 1 Repair Station Hacks . | . . . . . . Recycling Unit Hacks . | . . . . . . Scanalyzer 2 | . . . . 2 . Insert Component 1 | . . . . 1 . Analyze 1 | . . . . 1 . Garrison Access Hacks 1 | . . . . 1 . Seal Access 1 | . . . . 1 . Unauthorized Hacks 2 | . . 1 1 . . Terminals 2 | . . 1 1 . . Assimilate 1 | . . . 1 . . Operators 1 | . . 1 . . . Fabricators . | . . . . . . Repair Stations . | . . . . . . Recycling Units . | . . . . . . Scanalyzers . | . . . . . . Garrison Access . | . . . . . . Data Cores Recovered . | . . . . . . Used . | . . . . . . Hacking Detections 5 | . . . . 3 2 Full Trace Events . | . . . . . . Feedback Events . | . . . . . . Feedback Blocked . | . . . . . . Robot Schematics Acquired . | . . . . . . Robots Built . | . . . . . . Matter . | . . . . . . Time . | . . . . . . Total Robot Build Rating . | . . . . . . Part Schematics Acquired . | . . . . . . Parts Built 2 | . . . . . 2 Matter 190 | . . . . . 190 Time 47 | . . . . . 47 Total Part Build Rating 10 | . . . . . 10 Parts Repaired . | . . . . . . Time . | . . . . . . Parts Recycled . | . . . . . . Recycled Matter . | . . . . . . Retrieved Matter . | . . . . . . Retrieved Components . | . . . . . . Parts Scanalyzed 1 | . . . . 1 . Part Schematics Acquired . | . . . . . . Parts Damaged . | . . . . . . Bothacking | -11 -10 -9 -8 -7 -6 ------------ Run | Scr Mat Mat Mat Fac Fac Used RIF Installer . | . . . . . . Robots Hacked . | . . . . . . Non-combat . | . . . . . . Combat . | . . . . . . Robot Hacks Applied . | . . . . . . Relay Couplers Released . | . . . . . . Robots Rewired . | . . . . . . Allies Hacked . | . . . . . . Hacks Repelled . | . . . . . . Allies | -11 -10 -9 -8 -7 -6 -------- Run | Scr Mat Mat Mat Fac Fac Total Allies 1 | . . . 1 . . Largest Group 1 | . . . 1 . . Highest-Rated Group 10 | . . . 10 . . Highest-Rated Ally 10 | . . . 10 . . Total Orders 1 | . . . . . 1 EXPLORE 1 | . . . . . 1 Ally Attacks . | . . . . . . Total Damage . | . . . . . . Kills . | . . . . . . Allies Corrupted . | . . . . . . Allies Melted . | . . . . . . Intel | -11 -10 -9 -8 -7 -6 ------- Run | Scr Mat Mat Mat Fac Fac Robot Analysis Total . | . . . . . . Derelict Logs Recovered . | . . . . . . Drone Launches 2 | . . . . . 2 Drone Recoveries . | . . . . . . Exploration | -11 -10 -9 -8 -7 -6 ------------- Run | Scr Mat Mat Mat Fac Fac Turns Passed 1585 | 21 186 229 258 355 536 Spaces Moved 1734 | 35 262 272 366 454 345 Core 1410 | 35 262 272 43 454 344 Treads 1 | . . . . . 1 Legs . | . . . . . . Wheels . | . . . . . . Hover . | . . . . . . Flight 323 | . . . 323 . . Fastest Speed 34 | 50 50 50 34 50 50 Average Speed 56 | 50 50 50 40 68 68 Slowest Speed 160 | 50 50 50 150 100 160 Overloaded Moves . | . . . . . . Propulsion Burnouts . | . . . . . . Robots Hopped 3 | . . . 3 . . Cave-ins Triggered . | . . . . . . Exploration Rate (%) 24 | 4 40 29 42 14 16 Regions Visited 5 Branch Regions . Pre-discovered Areas . | . . . . . . Known Exits Taken 2 | . . . 1 1 . Unknown Exits Taken 3 | 1 1 1 . . . Scrap Searched . | . . . . . . Spaces Dug 8 | . . . 8 . . Terrain Destroyed 20 | . . . 20 . . Melee . | . . . . . . Projectile . | . . . . . . AOE 20 | . . . 20 . . Actions | -11 -10 -9 -8 -7 -6 --------- Run | Scr Mat Mat Mat Fac Fac Total 2224 | 38 291 331 430 488 646 Wait 324 | . 8 22 . 13 281 Move 1723 | 34 261 271 359 453 345 Hop 3 | . . . 3 . . Pick Up 22 | 4 1 5 6 2 4 Fast Attach 20 | . . 4 10 3 3 Attach 15 | . 2 2 6 3 2 Detach 9 | . . . 4 3 2 Swap 2 | . . . . 1 1 Drop 15 | . . 2 6 . 7 Fire 90 | . 18 25 36 10 1 Melee . | . . . . . . Ram 1 | . 1 . . . . Kick . | . . . . . . Crush . | . . . . . . Escape Stasis . | . . . . . . Rewire . | . . . . . . Trap . | . . . . . . Miscellaneous . | . . . . . . Route ------- -11/Scrapyard -10/Materials (discovered 2 exits: *Mat / [*Min]) -9/Materials -8/Materials (discovered 3 exits: *Fac x3) -7/Factory -6/Factory (discovered 1 exit: [*Ext]) History --------- Turn | Location | Event 3 | -11/Scrapyard | Discovered new exit (range 15) 22 | -11/Scrapyard | Entered Materials 174 | -10/Materials | Discovered new exit (range 7) 199 | -10/Materials | Discovered new exit (range 9) 208 | -10/Materials | Entered another Materials area 208 | -9/Materials | Evolved 2 slots: Propulsion x1, Utility x1 320 | -9/Materials | Build established: Mutant 413 | -9/Materials | Discovered new exit (range 18) 437 | -9/Materials | Entered another Materials area 437 | -8/Materials | Evolved 2 slots: Propulsion x1, Utility x1 658 | -8/Materials | Identified exit to Factory 689 | -8/Materials | Core integrity fell below 50% 695 | -8/Materials | Entered Factory 695 | -7/Factory | Evolved 2 slots: Utility x2 714 | -7/Factory | Lost 5 parts (1p2n2w) 909 | -7/Factory | Build established: Hacker-Mutant 982 | -7/Factory | Discovered new exit (range 14) 994 | -7/Factory | Identified exit to Factory 1050 | -7/Factory | Entered another Factory area 1050 | -6/Factory | Evolved 2 slots: Propulsion x1, Utility x1 1193 | -6/Factory | Discovered new exit (range 157) 1580 | -6/Factory | Fabricated Imp. Medium Treads (x2) 1586 | -6/Factory | Self-destructed Last Messages --------------- 01204_ Dropped Imp. Sensor Array. 01206_ Dropped Faulty Imp. Cesium-ion Thruster. 01206_ Acquired Imp. Proton Missile Launcher. 01215_ Acquired 37 matter. 01226_ Dropped Lgt. Ion Engine. 01227_ Acquired Mic. Nuclear Core. 01510_ Connecting with Terminal... >>Index(Terminals) Found 21 terminals. Downloaded coordinate data. 01533_ Connecting with Fabricator... >>Network(Status) Network status: Online Allocated matter: 556 >>Build Building Imp. Medium Treads... ETC: 47 01580_ Fabricator completes Imp. Medium Treads. 01580_ Acquired Imp. Medium Treads. 01585_ Dropped Imp. Medium Treads. Map ----- +----------------------------------------------------+ | ??????###############????################????????? | | ??????# #????# [ T #????????? | | ??????# """ """ """ #????# #????????? | | ####### """ """ """ #????# """ """ """ #????????? | | + """ """ """ #????# """ """ """ =#????????? | | ####### #????# """ """ """ #????????? | | ??????# ! #????# #????????? | | ??###########+#####+###??######+#+###############? | | ??# #???????# + """ #? | | ### #???????# # " " " "Y" #? | | # #???????# # " " " " " #? | | # ######### + " " " ## | | # # " " " # | | # #####+### ^ # " " " # | | ! # ## # """"" # " " " # | | # ## ! # ""T"" """ """ # " " " # | | # ## # """ """ # " " " +! | | # ## !# % """ """ # " " " # | | # ## # # # | | ### ## #g # ! # | | ??# ## # ############### # | | ### #########g ##########????############## | | # #?????????????????? | | g # """ #?????????????????? | | # "F" #?????????????????? | | + "@= #?????????????????? | | # """ #?????????????????? | | ################ # """ #?????????????????? | | #??????????????# # #?????????????????? | | #??????????????# # #?????????????????? | | #??????????????# # #?????????????????? | | #??????????????# ##########?????????????????? | | #??????????????# #???????????################ | | #??????????????# #???????????# | | #??????????????# #???????????# | | #??????????????# #???????????# !! | | #??????????????# #???????????# ! ! | | #??????????????# #???????????# | | #??????????????# ????????????# | | ???????????????? ????????????# | | ??????????????????? ????????????# | | ??????????????????????????????????? | | ???????????????????????????????????############### | | ????????????????????????????????????????? | | ????????????????????????????????????????? | | ????????????????????????????????????????? ^ | | ????????????????????????????????????????? | | ????????????????????????????????????????? | | ??????????????????????????????????????????######+# | | ???????????????????????????????????????????????? | +----------------------------------------------------+ Best States ------------- Heat Dissipation 37 Energy Generation 14 Energy Capacity 250 Matter Stores 300 Matter Capacity 300 Sight Range 18 Robot Scan Range 16 Terrain Scan Density 10 Evasion (%) 63 Targeting Accuracy 8 Offensive Hacking 50 Item Schematics ----------------- None Robot Schematics ------------------ None Fabricated ------------ Imp. Medium Treads | x2 | -6/Factory | Preloaded Alien Tech Used ----------------- None Achievements -------------- None Challenges ------------ None Game ------ Seed ChainShieldBoregun Manual? 0 Play Time 00:20:26 Cumulative 227.1 hours Start 2020.05.16 @ 14:40:12 End 2020.05.16 @ 15:07:21 Sessions 1 Manual Loads 0 Difficulty Rogue Special Mode None Game No. 358 Rogue 358 Adventurer 0 Explorer 0 Win Type - Total 4 Types 2/0/1/1/0/0/0 Lore% 78 Gallery% 78 Achievement% 60 Wizard Run 0 Options --------- ASCII 0 Keyboard 1 Movement Numpad Keybinds 0 Fullscreen 2 Font 18/X11Bold Map View 76x50 Tactical HUD 1 Map Filters NONE Filters NONE Steam 1 RUN: 45bdfcd4-d208-4aa7-bf75-9098dc5ecf34